[Event "Early-Titled-Tuesday-Blitz-July-09-2024"]
[Site "Chess.com"]
[Date "2024.07.09"]
[Round "2"]
[White "Ditman2007"]
[Black "invisible_s0ul"]
[Result "1-0"]
[WhiteElo "2716"]
[BlackElo "2373"]
[TimeControl "180+1"]
[EndTime "8:17:24 PDT"]
[Termination "Ditman2007 won on time"]

1. e4 {[%clk 0:03:00.9]} 1... c5 {[%clk 0:02:58.7]} 2. Nf3 {[%clk 0:03:00.8]}
2... d6 {[%clk 0:02:58.4]} 3. d4 {[%clk 0:03:01.1]} 3... cxd4 {[%clk 0:02:59.3]}
4. Nxd4 {[%clk 0:03:01.9]} 4... Nf6 {[%clk 0:02:59.8]} 5. Nc3 {[%clk 0:03:02.1]}
5... a6 {[%clk 0:03:00.3]} 6. f3 {[%clk 0:03:01.4]} 6... g6 {[%clk 0:02:52.7]}
7. Be3 {[%clk 0:03:01.2]} 7... Bg7 {[%clk 0:02:52.9]} 8. Qd2 {[%clk 0:03:01.6]}
8... b5 {[%clk 0:02:47.1]} 9. a4 {[%clk 0:02:56.8]} 9... b4 {[%clk 0:02:44.7]}
10. Nd5 {[%clk 0:02:50.8]} 10... Nxd5 {[%clk 0:02:43.6]} 11. exd5 {[%clk
0:02:51.7]} 11... a5 {[%clk 0:02:39.4]} 12. Bc4 {[%clk 0:02:35.1]} 12... O-O
{[%clk 0:02:38.8]} 13. O-O {[%clk 0:02:34.1]} 13... Ba6 {[%clk 0:02:31.1]} 14.
Bxa6 {[%clk 0:02:27.6]} 14... Nxa6 {[%clk 0:02:32]} 15. Nc6 {[%clk 0:02:24.4]}
15... Qd7 {[%clk 0:02:31.6]} 16. Bd4 {[%clk 0:02:07.3]} 16... Nc5 {[%clk
0:02:26.6]} 17. Bxg7 {[%clk 0:02:01.9]} 17... Kxg7 {[%clk 0:02:27.5]} 18. Qd4+
{[%clk 0:02:02.1]} 18... Kg8 {[%clk 0:02:24.5]} 19. Rfe1 {[%clk 0:01:59.5]}
19... e5 {[%clk 0:02:14.6]} 20. Nxe5 {[%clk 0:01:58.2]} 20... dxe5 {[%clk
0:02:11.5]} 21. Qxc5 {[%clk 0:01:58.1]} 21... Rfe8 {[%clk 0:02:08.8]} 22. Re2
{[%clk 0:01:51.3]} 22... Rec8 {[%clk 0:01:42.7]} 23. Qb5 {[%clk 0:01:42.6]}
23... Qa7+ {[%clk 0:01:36.9]} 24. Kh1 {[%clk 0:01:39.2]} 24... Qd4 {[%clk
0:01:22.7]} 25. Rb1 {[%clk 0:01:22]} 25... Rc5 {[%clk 0:01:15]} 26. Qb7 {[%clk
0:01:17.9]} 26... Qxd5 {[%clk 0:01:11.8]} 27. Qe7 {[%clk 0:01:06.6]} 27... Rac8
{[%clk 0:01:04.8]} 28. Rbe1 {[%clk 0:01:05.6]} 28... Rxc2 {[%clk 0:01:00.2]} 29.
Rxe5 {[%clk 0:01:03.3]} 29... Qb3 {[%clk 0:00:39.6]} 30. Qf6 {[%clk 0:00:55.2]}
30... Rf8 {[%clk 0:00:22.5]} 31. h4 {[%clk 0:00:18]} 31... Rcc8 {[%clk
0:00:19.5]} 32. h5 {[%clk 0:00:17.2]} 32... h6 {[%clk 0:00:09.1]} 33. hxg6
{[%clk 0:00:17]} 33... Qc4 {[%clk 0:00:03.9]} 34. g7 {[%clk 0:00:15.5]} 34...
Rfd8 {[%clk 0:00:02.9]} 35. Qxh6 {[%clk 0:00:15.4]} 1-0

[Event "Early-Titled-Tuesday-Blitz-July-09-2024"]
[Site "Chess.com"]
[Date "2024.07.09"]
[Round "2"]
[White "LileKoridze"]
[Black "JAN2404"]
[Result "1-0"]
[WhiteElo "2431"]
[BlackElo "2062"]
[TimeControl "180+1"]
[EndTime "8:17:24 PDT"]
[Termination "LileKoridze won on time"]

1. d4 {[%clk 0:03:00.9]} 1... Nf6 {[%clk 0:02:59.9]} 2. c4 {[%clk 0:02:59.8]}
2... g6 {[%clk 0:03:00.1]} 3. Nc3 {[%clk 0:02:55.4]} 3... Bg7 {[%clk 0:03:00.3]}
4. e4 {[%clk 0:02:55.6]} 4... d6 {[%clk 0:03:00.3]} 5. Nf3 {[%clk 0:02:55.6]}
5... O-O {[%clk 0:03:00.1]} 6. Be2 {[%clk 0:02:55.5]} 6... e5 {[%clk 0:02:59.9]}
7. d5 {[%clk 0:02:55.4]} 7... a5 {[%clk 0:02:52.8]} 8. Bg5 {[%clk 0:02:54.8]}
8... Na6 {[%clk 0:02:50.8]} 9. Nd2 {[%clk 0:02:47.7]} 9... c6 {[%clk 0:02:45.9]}
10. dxc6 {[%clk 0:02:42.3]} 10... bxc6 {[%clk 0:02:45.6]} 11. O-O {[%clk
0:02:42.7]} 11... Be6 {[%clk 0:02:41.2]} 12. Be3 {[%clk 0:02:25.6]} 12... Rb8
{[%clk 0:02:29.7]} 13. b3 {[%clk 0:02:25.4]} 13... Nd7 {[%clk 0:02:30]} 14. Qc1
{[%clk 0:02:10.3]} 14... f5 {[%clk 0:02:26.2]} 15. f3 {[%clk 0:02:06.9]} 15...
f4 {[%clk 0:02:19.4]} 16. Bf2 {[%clk 0:02:07.1]} 16... g5 {[%clk 0:02:19.1]} 17.
Rd1 {[%clk 0:02:06.2]} 17... Qe7 {[%clk 0:02:02.5]} 18. Nf1 {[%clk 0:02:05.5]}
18... h5 {[%clk 0:02:01.4]} 19. h3 {[%clk 0:02:04.1]} 19... Nf6 {[%clk
0:01:56.6]} 20. Qd2 {[%clk 0:02:02.1]} 20... Rbd8 {[%clk 0:01:52.3]} 21. Bb6
{[%clk 0:02:01.3]} 21... Rd7 {[%clk 0:01:51.2]} 22. Bxa5 {[%clk 0:02:01.6]}
22... g4 {[%clk 0:01:43.9]} 23. fxg4 {[%clk 0:01:58.8]} 23... hxg4 {[%clk
0:01:43.8]} 24. hxg4 {[%clk 0:01:59.1]} 24... Nxg4 {[%clk 0:01:41.4]} 25. Bxg4
{[%clk 0:01:52]} 25... Bxg4 {[%clk 0:01:41.2]} 26. Re1 {[%clk 0:01:50.3]} 26...
f3 {[%clk 0:01:36.7]} 27. Bb6 {[%clk 0:01:49.8]} 27... Nc5 {[%clk 0:01:35]} 28.
Nd1 {[%clk 0:01:45.8]} 28... Qh4 {[%clk 0:01:29.9]} 29. g3 {[%clk 0:01:42.4]}
29... Qh3 {[%clk 0:01:13.8]} 30. Qh2 {[%clk 0:01:37.8]} 30... Nd3 {[%clk
0:00:53]} 31. Qxh3 {[%clk 0:01:19]} 31... Bxh3 {[%clk 0:00:51.6]} 32. Nf2 {[%clk
0:01:19.2]} 32... Nxe1 {[%clk 0:00:49]} 33. Rxe1 {[%clk 0:01:18.2]} 33... Bxf1
{[%clk 0:00:45.6]} 34. Kxf1 {[%clk 0:01:18.1]} 34... Ra8 {[%clk 0:00:39.2]} 35.
a4 {[%clk 0:01:17.5]} 35... c5 {[%clk 0:00:32.6]} 36. Re3 {[%clk 0:01:16.3]}
36... Rf7 {[%clk 0:00:32.1]} 37. Ng4 {[%clk 0:01:13.4]} 37... Rb8 {[%clk
0:00:19.9]} 38. a5 {[%clk 0:01:13.2]} 38... Kh7 {[%clk 0:00:19.7]} 39. Nh2
{[%clk 0:01:13]} 39... f2 {[%clk 0:00:17.9]} 40. Ng4 {[%clk 0:01:11.4]} 40...
Bh6 {[%clk 0:00:17.1]} 41. Re2 {[%clk 0:01:10.8]} 41... Rg8 {[%clk 0:00:12.9]}
42. Rxf2 {[%clk 0:01:06.1]} 42... Rxf2+ {[%clk 0:00:12]} 43. Nxf2 {[%clk
0:01:07]} 43... Rxg3 {[%clk 0:00:12.4]} 44. a6 {[%clk 0:01:06.9]} 44... Rxb3
{[%clk 0:00:12.4]} 45. a7 {[%clk 0:01:05.4]} 45... Ra3 {[%clk 0:00:13]} 46. Ng4
{[%clk 0:01:05.6]} 46... Bf4 {[%clk 0:00:12.5]} 47. Nf6+ {[%clk 0:01:05.8]}
47... Kg6 {[%clk 0:00:13]} 48. Nd5 {[%clk 0:01:06.3]} 48... Kg5 {[%clk
0:00:07.2]} 49. Nc7 {[%clk 0:00:59.5]} 49... Ra1+ {[%clk 0:00:05.8]} 50. Ke2
{[%clk 0:00:59.6]} 50... Ra2+ {[%clk 0:00:06.4]} 51. Kd3 {[%clk 0:00:59.3]}
51... Ra3+ {[%clk 0:00:06.3]} 52. Kc2 {[%clk 0:00:59.3]} 52... Ra6 {[%clk
0:00:03.6]} 53. Nxa6 {[%clk 0:00:58.8]} 1-0

[Event "Early-Titled-Tuesday-Blitz-July-09-2024"]
[Site "Chess.com"]
[Date "2024.07.09"]
[Round "2"]
[White "Kildepiotr"]
[Black "Irina_Mikhaylova"]
[Result "1-0"]
[WhiteElo "2689"]
[BlackElo "2383"]
[TimeControl "180+1"]
[EndTime "8:17:27 PDT"]
[Termination "Kildepiotr won by resignation"]

1. Nf3 {[%clk 0:02:58.1]} 1... Nf6 {[%clk 0:02:59.8]} 2. g3 {[%clk 0:02:58.5]}
2... g6 {[%clk 0:03:00.2]} 3. Bg2 {[%clk 0:02:59.4]} 3... Bg7 {[%clk 0:03:00.7]}
4. O-O {[%clk 0:03:00.3]} 4... O-O {[%clk 0:03:01.1]} 5. d4 {[%clk 0:03:01.1]}
5... d5 {[%clk 0:03:01.6]} 6. c4 {[%clk 0:03:01.8]} 6... c6 {[%clk 0:03:02.2]}
7. Nc3 {[%clk 0:03:02.5]} 7... dxc4 {[%clk 0:03:02.1]} 8. a4 {[%clk 0:03:01.6]}
8... a5 {[%clk 0:03:02.1]} 9. e3 {[%clk 0:03:01.7]} 9... Na6 {[%clk 0:02:58.4]}
10. Qe2 {[%clk 0:03:01.7]} 10... Be6 {[%clk 0:02:49]} 11. Ne5 {[%clk 0:03:01.5]}
11... Nb4 {[%clk 0:02:33.3]} 12. Nxc4 {[%clk 0:03:01.1]} 12... Nfd5 {[%clk
0:02:27.5]} 13. Ne4 {[%clk 0:02:59]} 13... Nb6 {[%clk 0:02:23.3]} 14. Nxb6
{[%clk 0:02:55.2]} 14... Qxb6 {[%clk 0:02:24.2]} 15. Nc5 {[%clk 0:02:55.1]}
15... Bc8 {[%clk 0:02:19.8]} 16. Bd2 {[%clk 0:02:54.7]} 16... e5 {[%clk
0:02:05.3]} 17. Bc3 {[%clk 0:02:54.4]} 17... Re8 {[%clk 0:02:01.8]} 18. Qd2
{[%clk 0:02:42]} 18... Be6 {[%clk 0:01:50]} 19. Nxe6 {[%clk 0:02:37.7]} 19...
Rxe6 {[%clk 0:01:50.9]} 20. dxe5 {[%clk 0:02:36.1]} 20... Bxe5 {[%clk
0:01:50.2]} 21. Bxe5 {[%clk 0:02:36]} 21... Rxe5 {[%clk 0:01:50.7]} 22. Rfd1
{[%clk 0:02:35.5]} 22... Ree8 {[%clk 0:01:48.6]} 23. Bf1 {[%clk 0:02:25.4]}
23... Rad8 {[%clk 0:01:47.6]} 24. Qc3 {[%clk 0:02:20]} 24... Rxd1 {[%clk
0:01:47.4]} 25. Rxd1 {[%clk 0:02:19.6]} 25... Rd8 {[%clk 0:01:47.9]} 26. Rxd8+
{[%clk 0:02:15.8]} 26... Qxd8 {[%clk 0:01:48.1]} 27. Bc4 {[%clk 0:02:15.4]}
27... Qd6 {[%clk 0:01:35.5]} 28. h4 {[%clk 0:02:08.6]} 28... h5 {[%clk
0:01:34.8]} 29. e4 {[%clk 0:02:06.7]} 29... c5 {[%clk 0:01:06.7]} 30. Qf3 {[%clk
0:02:01.6]} 30... Qe7 {[%clk 0:01:01.6]} 31. Qe3 {[%clk 0:01:44.2]} 31... Kg7
{[%clk 0:00:59.5]} 32. e5 {[%clk 0:01:43.3]} 32... Nc6 {[%clk 0:00:57.2]} 33. f4
{[%clk 0:01:43.1]} 33... Nd4 {[%clk 0:00:56.9]} 34. Qe4 {[%clk 0:01:36.8]} 34...
Qd7 {[%clk 0:00:56.4]} 35. b3 {[%clk 0:01:36.6]} 35... Qg4 {[%clk 0:00:53.8]}
36. Kf2 {[%clk 0:01:30.1]} 36... Qh3 {[%clk 0:00:49.9]} 37. Qxb7 {[%clk
0:01:25.3]} 37... Qh2+ {[%clk 0:00:49.9]} 38. Qg2 {[%clk 0:01:25.4]} 38... Qxg2+
{[%clk 0:00:45.9]} 39. Kxg2 {[%clk 0:01:26.3]} 39... f6 {[%clk 0:00:46.1]} 40.
Bd5 {[%clk 0:01:19.1]} 40... fxe5 {[%clk 0:00:38.5]} 41. fxe5 {[%clk 0:01:20]}
41... Nf5 {[%clk 0:00:37.3]} 42. Kf3 {[%clk 0:01:18.6]} 42... Kf8 {[%clk
0:00:37.5]} 43. Kf4 {[%clk 0:01:17.1]} 43... Ke7 {[%clk 0:00:37.5]} 44. Bc4
{[%clk 0:01:09.1]} 44... Ke8 {[%clk 0:00:33.4]} 45. Bd3 {[%clk 0:01:02.2]} 45...
Nd4 {[%clk 0:00:31.2]} 46. Bxg6+ {[%clk 0:01:02.2]} 46... Ke7 {[%clk 0:00:31.9]}
47. Bxh5 {[%clk 0:01:02.3]} 47... Nxb3 {[%clk 0:00:32.1]} 48. Be2 {[%clk
0:00:57.6]} 48... Nd4 {[%clk 0:00:25.7]} 49. Bc4 {[%clk 0:00:57.2]} 49... Nc2
{[%clk 0:00:25.3]} 50. h5 {[%clk 0:00:56.2]} 50... Na3 {[%clk 0:00:25.3]} 51.
Bd5 {[%clk 0:00:47.6]} 51... c4 {[%clk 0:00:24]} 52. Ke4 {[%clk 0:00:43.6]}
52... c3 {[%clk 0:00:22.4]} 53. Kd3 {[%clk 0:00:43.7]} 53... c2 {[%clk
0:00:22.7]} 54. Kd2 {[%clk 0:00:43.8]} 1-0

[Event "Early-Titled-Tuesday-Blitz-July-09-2024"]
[Site "Chess.com"]
[Date "2024.07.09"]
[Round "2"]
[White "RobertoJBM"]
[Black "Kazmin_Semyon"]
[Result "1-0"]
[WhiteElo "2870"]
[BlackElo "2591"]
[TimeControl "180+1"]
[EndTime "8:17:29 PDT"]
[Termination "RobertoJBM won by checkmate"]

1. d4 {[%clk 0:02:54.3]} 1... Nf6 {[%clk 0:03:00.1]} 2. Nf3 {[%clk 0:02:54.1]}
2... d5 {[%clk 0:02:57.9]} 3. e3 {[%clk 0:02:55]} 3... e6 {[%clk 0:02:56.1]} 4.
Bd3 {[%clk 0:02:54.8]} 4... b6 {[%clk 0:02:56]} 5. Nbd2 {[%clk 0:02:55.1]} 5...
Bb7 {[%clk 0:02:55.9]} 6. Qe2 {[%clk 0:02:55.7]} 6... c5 {[%clk 0:02:53]} 7. c3
{[%clk 0:02:55.3]} 7... Be7 {[%clk 0:02:50.9]} 8. e4 {[%clk 0:02:55.4]} 8...
dxe4 {[%clk 0:02:49.5]} 9. Nxe4 {[%clk 0:02:56.3]} 9... Nxe4 {[%clk 0:02:48]}
10. Bxe4 {[%clk 0:02:57.2]} 10... Bxe4 {[%clk 0:02:48.3]} 11. Qxe4 {[%clk
0:02:57.7]} 11... Nd7 {[%clk 0:02:48.9]} 12. O-O {[%clk 0:02:57.4]} 12... O-O
{[%clk 0:02:46.8]} 13. Rd1 {[%clk 0:02:57.9]} 13... Nf6 {[%clk 0:02:44.6]} 14.
Qe2 {[%clk 0:02:57.7]} 14... Qc7 {[%clk 0:02:43.5]} 15. Bg5 {[%clk 0:02:57.3]}
15... Nd5 {[%clk 0:02:35]} 16. dxc5 {[%clk 0:02:55.3]} 16... Bxc5 {[%clk
0:02:25.5]} 17. c4 {[%clk 0:02:50.7]} 17... Nf4 {[%clk 0:02:21.4]} 18. Qe4
{[%clk 0:02:47.9]} 18... Ng6 {[%clk 0:02:20.1]} 19. Rd3 {[%clk 0:02:45.7]} 19...
h6 {[%clk 0:02:18.2]} 20. Be3 {[%clk 0:02:35.2]} 20... Rad8 {[%clk 0:02:15.3]}
21. Bxc5 {[%clk 0:02:30.4]} 21... Qxc5 {[%clk 0:02:12.5]} 22. Rad1 {[%clk
0:02:29.2]} 22... Rxd3 {[%clk 0:02:07.5]} 23. Rxd3 {[%clk 0:02:30.1]} 23... Rc8
{[%clk 0:02:01.7]} 24. b3 {[%clk 0:02:27.2]} 24... b5 {[%clk 0:01:56.4]} 25.
cxb5 {[%clk 0:02:09]} 25... Qxb5 {[%clk 0:01:55]} 26. g3 {[%clk 0:02:06.3]}
26... Rc1+ {[%clk 0:01:21]} 27. Kg2 {[%clk 0:02:05.6]} 27... Qc6 {[%clk
0:01:16.8]} 28. Rd8+ {[%clk 0:02:01.7]} 28... Kh7 {[%clk 0:01:16.7]} 29. Qxc6
{[%clk 0:01:59.9]} 29... Rxc6 {[%clk 0:01:17.6]} 30. Rd7 {[%clk 0:01:52.7]}
30... Ra6 {[%clk 0:01:14.8]} 31. a4 {[%clk 0:01:50.5]} 31... f6 {[%clk
0:01:08.6]} 32. Nd4 {[%clk 0:01:47.7]} 32... Ne5 {[%clk 0:00:54.9]} 33. Rc7
{[%clk 0:01:43.6]} 33... Kg6 {[%clk 0:00:31.7]} 34. f4 {[%clk 0:01:40.1]} 34...
Nd3 {[%clk 0:00:24.7]} 35. Nb5 {[%clk 0:01:36.2]} 35... Rb6 {[%clk 0:00:22.1]}
36. Rxa7 {[%clk 0:01:33.8]} 36... Nc5 {[%clk 0:00:22.7]} 37. b4 {[%clk 0:01:25]}
37... Nxa4 {[%clk 0:00:22.4]} 38. Rxa4 {[%clk 0:01:25.9]} 38... Rxb5 {[%clk
0:00:22.7]} 39. Kf3 {[%clk 0:01:26.6]} 39... e5 {[%clk 0:00:17.8]} 40. Ke4
{[%clk 0:01:24.6]} 40... exf4 {[%clk 0:00:18.2]} 41. gxf4 {[%clk 0:01:25.1]}
41... h5 {[%clk 0:00:15.2]} 42. h4 {[%clk 0:01:24.8]} 42... Rb8 {[%clk
0:00:09.1]} 43. f5+ {[%clk 0:01:23.4]} 43... Kh6 {[%clk 0:00:09.7]} 44. Kd5
{[%clk 0:01:22.1]} 44... Rb5+ {[%clk 0:00:09.7]} 45. Kc6 {[%clk 0:01:21.4]}
45... Rxf5 {[%clk 0:00:09.9]} 46. b5 {[%clk 0:01:22]} 46... Rf1 {[%clk
0:00:05.1]} 47. Rb4 {[%clk 0:01:21.2]} 47... Rc1+ {[%clk 0:00:03.1]} 48. Kd7
{[%clk 0:01:21.7]} 48... Rd1+ {[%clk 0:00:03.6]} 49. Ke7 {[%clk 0:01:21.5]}
49... Re1+ {[%clk 0:00:03.1]} 50. Kf7 {[%clk 0:01:21.8]} 50... Rd1 {[%clk
0:00:02.4]} 51. b6 {[%clk 0:01:21.8]} 51... Rd7+ {[%clk 0:00:02.9]} 52. Ke6
{[%clk 0:01:21.2]} 52... Rb7 {[%clk 0:00:03.6]} 53. Kd6 {[%clk 0:01:21.9]} 53...
g5 {[%clk 0:00:04.1]} 54. Kc6 {[%clk 0:01:22.1]} 54... Rb8 {[%clk 0:00:04.3]}
55. b7 {[%clk 0:01:22.2]} 55... Rg8 {[%clk 0:00:03.2]} 56. b8=Q {[%clk 0:01:20]}
56... Rxb8 {[%clk 0:00:03.4]} 57. Rxb8 {[%clk 0:01:20.9]} 57... gxh4 {[%clk
0:00:03.7]} 58. Kd5 {[%clk 0:01:21.5]} 58... Kg5 {[%clk 0:00:03.8]} 59. Ke4
{[%clk 0:01:21.9]} 59... Kg4 {[%clk 0:00:03.9]} 60. Rg8+ {[%clk 0:01:21.6]}
60... Kh3 {[%clk 0:00:04]} 61. Kf3 {[%clk 0:01:22.5]} 61... Kh2 {[%clk
0:00:04.1]} 62. Rg2+ {[%clk 0:01:21.8]} 62... Kh1 {[%clk 0:00:02]} 63. Rg6
{[%clk 0:01:20.2]} 63... h3 {[%clk 0:00:02]} 64. Kf2 {[%clk 0:01:18.2]} 64... h4
{[%clk 0:00:02.1]} 65. Rxf6 {[%clk 0:01:15]} 65... h2 {[%clk 0:00:02]} 66. Ra6
{[%clk 0:01:13.5]} 66... h3 {[%clk 0:00:02.9]} 67. Ra1# {[%clk 0:01:13.5]} 1-0

[Event "Early-Titled-Tuesday-Blitz-July-09-2024"]
[Site "Chess.com"]
[Date "2024.07.09"]
[Round "2"]
[White "ArchibaldCerveza29"]
[Black "Herzog2012"]
[Result "0-1"]
[WhiteElo "2433"]
[BlackElo "2733"]
[TimeControl "180+1"]
[EndTime "8:17:30 PDT"]
[Termination "Herzog2012 won by checkmate"]

1. e4 {[%clk 0:03:00.9]} 1... c5 {[%clk 0:02:59.2]} 2. c3 {[%clk 0:02:59.3]}
2... Nf6 {[%clk 0:02:58.3]} 3. e5 {[%clk 0:02:59.3]} 3... Nd5 {[%clk 0:02:58.4]}
4. d4 {[%clk 0:02:59.8]} 4... cxd4 {[%clk 0:02:59.3]} 5. Nf3 {[%clk 0:02:59.7]}
5... Nc6 {[%clk 0:02:59]} 6. cxd4 {[%clk 0:02:59.1]} 6... d6 {[%clk 0:02:58.4]}
7. exd6 {[%clk 0:02:59.1]} 7... Qxd6 {[%clk 0:02:58.7]} 8. Nc3 {[%clk
0:02:59.4]} 8... Bg4 {[%clk 0:02:38.9]} 9. Be2 {[%clk 0:02:51.6]} 9... e6 {[%clk
0:02:36.1]} 10. O-O {[%clk 0:02:46.3]} 10... Be7 {[%clk 0:02:32.9]} 11. h3
{[%clk 0:02:46]} 11... Bh5 {[%clk 0:02:08.2]} 12. Be3 {[%clk 0:02:40]} 12... O-O
{[%clk 0:02:03.4]} 13. Rc1 {[%clk 0:02:35]} 13... Rac8 {[%clk 0:01:43.7]} 14.
Qb3 {[%clk 0:02:27.2]} 14... Ncb4 {[%clk 0:01:04.4]} 15. a3 {[%clk 0:01:46.3]}
15... Nxc3 {[%clk 0:00:58.2]} 16. bxc3 {[%clk 0:01:40.8]} 16... Nd5 {[%clk
0:00:56.4]} 17. c4 {[%clk 0:01:26.5]} 17... Nxe3 {[%clk 0:00:49.8]} 18. fxe3
{[%clk 0:01:27.4]} 18... Qxa3 {[%clk 0:00:47.2]} 19. Qxa3 {[%clk 0:01:28.3]}
19... Bxa3 {[%clk 0:00:47.5]} 20. Ra1 {[%clk 0:01:28.3]} 20... Bd6 {[%clk
0:00:30.4]} 21. Rxa7 {[%clk 0:01:27.6]} 21... Rc7 {[%clk 0:00:29.3]} 22. Rb1
{[%clk 0:01:24.4]} 22... Rb8 {[%clk 0:00:26.9]} 23. Rb6 {[%clk 0:01:11.1]} 23...
Bg3 {[%clk 0:00:25.7]} 24. c5 {[%clk 0:01:00.9]} 24... Bg6 {[%clk 0:00:14.7]}
25. Nd2 {[%clk 0:00:55.8]} 25... e5 {[%clk 0:00:12.7]} 26. Bf3 {[%clk
0:00:31.9]} 26... exd4 {[%clk 0:00:12.4]} 27. exd4 {[%clk 0:00:32.8]} 27... Re7
{[%clk 0:00:09.3]} 28. Ra1 {[%clk 0:00:18.9]} 28... Bf4 {[%clk 0:00:07.3]} 29.
Nc4 {[%clk 0:00:18.6]} 29... h5 {[%clk 0:00:06.1]} 30. Kf2 {[%clk 0:00:16.4]}
30... Bd3 {[%clk 0:00:06.2]} 31. Nd6 {[%clk 0:00:15]} 31... Be3+ {[%clk
0:00:06.5]} 32. Kg3 {[%clk 0:00:14.4]} 32... Bxd4 {[%clk 0:00:06.9]} 33. Rxb7
{[%clk 0:00:13.8]} 33... Be5+ {[%clk 0:00:03.9]} 34. Kf2 {[%clk 0:00:13.7]}
34... Bxd6 {[%clk 0:00:04.8]} 35. cxd6 {[%clk 0:00:14.3]} 35... Rexb7 {[%clk
0:00:04.5]} 36. Bxb7 {[%clk 0:00:14.3]} 36... Rxb7 {[%clk 0:00:05.4]} 37. Ra8+
{[%clk 0:00:14.4]} 37... Kh7 {[%clk 0:00:05.3]} 38. Rd8 {[%clk 0:00:15.1]} 38...
Bf5 {[%clk 0:00:05.4]} 39. Kg3 {[%clk 0:00:14.8]} 39... Be6 {[%clk 0:00:05.8]}
40. Kh4 {[%clk 0:00:15.7]} 40... g6 {[%clk 0:00:05.7]} 41. g4 {[%clk 0:00:16.3]}
41... hxg4 {[%clk 0:00:05.8]} 42. hxg4 {[%clk 0:00:17.2]} 42... Rb4 {[%clk
0:00:05.7]} 43. Kg5 {[%clk 0:00:17.4]} 43... Kg7 {[%clk 0:00:06.3]} 44. d7
{[%clk 0:00:17]} 44... Rxg4# {[%clk 0:00:06.5]} 0-1

[Event "Early-Titled-Tuesday-Blitz-July-09-2024"]
[Site "Chess.com"]
[Date "2024.07.09"]
[Round "2"]
[White "Zhigalko_Sergei"]
[Black "ansko1999"]
[Result "1-0"]
[WhiteElo "2927"]
[BlackElo "2625"]
[TimeControl "180+1"]
[EndTime "8:17:32 PDT"]
[Termination "Zhigalko_Sergei won by resignation"]

1. e4 {[%clk 0:03:00.9]} 1... c5 {[%clk 0:02:59.7]} 2. Nf3 {[%clk 0:03:00.8]}
2... Nf6 {[%clk 0:03:00.1]} 3. e5 {[%clk 0:03:00.6]} 3... Nd5 {[%clk 0:03:00.5]}
4. c3 {[%clk 0:03:01.2]} 4... Nc6 {[%clk 0:02:59.1]} 5. Bc4 {[%clk 0:03:00.5]}
5... Nb6 {[%clk 0:02:57.8]} 6. Bb3 {[%clk 0:03:00.8]} 6... d6 {[%clk 0:02:57.4]}
7. exd6 {[%clk 0:03:00.9]} 7... Qxd6 {[%clk 0:02:57.4]} 8. O-O {[%clk
0:03:01.1]} 8... Be6 {[%clk 0:02:54.6]} 9. Bxe6 {[%clk 0:03:00.4]} 9... Qxe6
{[%clk 0:02:55.5]} 10. a4 {[%clk 0:03:01.1]} 10... Nd5 {[%clk 0:02:42.2]} 11. d4
{[%clk 0:03:00.6]} 11... cxd4 {[%clk 0:02:41.6]} 12. Nxd4 {[%clk 0:03:01.3]}
12... Qd7 {[%clk 0:02:29.7]} 13. Nxc6 {[%clk 0:02:57.2]} 13... Qxc6 {[%clk
0:02:30.6]} 14. Qd4 {[%clk 0:02:57.5]} 14... e6 {[%clk 0:02:24.4]} 15. Rd1
{[%clk 0:02:55.5]} 15... Nf6 {[%clk 0:02:10.7]} 16. Be3 {[%clk 0:02:50.9]} 16...
Be7 {[%clk 0:02:08.5]} 17. Nd2 {[%clk 0:02:46.1]} 17... O-O {[%clk 0:02:06]} 18.
Qc4 {[%clk 0:02:39.3]} 18... Qxc4 {[%clk 0:01:35.9]} 19. Nxc4 {[%clk 0:02:39.3]}
19... Nd5 {[%clk 0:01:33.6]} 20. Bd4 {[%clk 0:02:21.1]} 20... Rfc8 {[%clk
0:01:30.4]} 21. Ne3 {[%clk 0:02:20.2]} 21... Nf4 {[%clk 0:01:16.9]} 22. Kf1
{[%clk 0:02:01.7]} 22... f6 {[%clk 0:01:16.7]} 23. g3 {[%clk 0:01:59.8]} 23...
Ng6 {[%clk 0:01:15.8]} 24. Nc2 {[%clk 0:01:50.6]} 24... e5 {[%clk 0:01:10.9]}
25. Be3 {[%clk 0:01:50.7]} 25... Nf8 {[%clk 0:01:11]} 26. h4 {[%clk 0:01:47.7]}
26... h5 {[%clk 0:01:09.4]} 27. Ke2 {[%clk 0:01:47.1]} 27... Kf7 {[%clk
0:01:09.6]} 28. a5 {[%clk 0:01:45.1]} 28... a6 {[%clk 0:00:59.8]} 29. Bb6 {[%clk
0:01:39.1]} 29... Ke6 {[%clk 0:00:57]} 30. Ne3 {[%clk 0:01:38.6]} 30... Bc5
{[%clk 0:00:46.6]} 31. Nd5 {[%clk 0:01:35.2]} 31... Bd6 {[%clk 0:00:26.9]} 32.
Rd2 {[%clk 0:01:19.9]} 32... Ng6 {[%clk 0:00:17.7]} 33. Rad1 {[%clk 0:01:19.1]}
33... Rc6 {[%clk 0:00:15.9]} 34. Be3 {[%clk 0:00:44.2]} 34... Ne7 {[%clk
0:00:12.4]} 35. Nxe7 {[%clk 0:00:40.9]} 35... Bxe7 {[%clk 0:00:13.3]} 36. Rd7
{[%clk 0:00:40.3]} 36... Rb8 {[%clk 0:00:05.9]} 37. Ba7 {[%clk 0:00:40.3]} 37...
Ra8 {[%clk 0:00:06.3]} 38. Rxb7 {[%clk 0:00:39.6]} 38... Rd6 {[%clk 0:00:04.2]}
39. Rxe7+ {[%clk 0:00:37.7]} 39... Kxe7 {[%clk 0:00:02.6]} 40. Bc5 {[%clk
0:00:38]} 40... Rd8 {[%clk 0:00:01.9]} 41. b4 {[%clk 0:00:37.4]} 41... Ke6
{[%clk 0:00:01.9]} 42. Bxd6 {[%clk 0:00:37.9]} 42... Rxd6 {[%clk 0:00:02.8]} 43.
Rxd6+ {[%clk 0:00:38.2]} 43... Kxd6 {[%clk 0:00:03.7]} 44. c4 {[%clk 0:00:38.8]}
44... Kc6 {[%clk 0:00:03.5]} 45. f4 {[%clk 0:00:28.5]} 45... e4 {[%clk
0:00:02.7]} 46. f5 {[%clk 0:00:28.8]} 46... Kd6 {[%clk 0:00:02.3]} 47. b5 {[%clk
0:00:28.2]} 47... axb5 {[%clk 0:00:02.3]} 48. cxb5 {[%clk 0:00:29.1]} 1-0